[Event "Kazakhstan Cup Open 2020"]
[Site "Almaty"]
[Date "2020.12.12"]
[Round "2.1"]
[White "Ibrayev, Nurlan"]
[Black "Akhmetov, Ayan"]
[Result "0-1"]
[ECO "A41"]
[WhiteElo "2395"]
[BlackElo "2438"]
[Annotator "RC"]
[PlyCount "142"]
[EventDate "2020.12.01"]
[EventType "tourn"]
[EventCountry "KAZ"]
[SourceTitle "playchess.com"]
[Source "ChessBase"]
[SourceQuality "1"]
[TimeControl "40/5400+30:1800+30"]

1. d4 {[%emt 0:04:07]} d6 {[%emt 0:00:19]} 2. e4 {[%emt 0:01:00]} Nf6 {[%emt 0:00:17]} 3. Nd2 {[%emt 0:03:23]} e5 {[%emt 0:03:33]} 4. c3 {[%emt 0:00:19]} c6 {[%emt 0:01:57]} 5. Ngf3 {[%emt 0:00:56]} Qc7 {[%emt 0:01:56]} 6. Bd3 {[%emt 0:00:35]} Bg4 {[%emt 0:00:44]} 7. h3 {[%emt 0:00:25]} Bxf3 {[%emt 0:00:17]} 8. Nxf3 {[%emt 0:00:20]} Nbd7 {[%emt 0:00:04]} 9. O-O {[%emt 0:00:18]} Be7 {[%emt 0:02:08]} 10. Re1 {[%emt 0:01:44]} O-O {[%emt 0:01:29]} 11. b3 {[%emt 0:10:22]} Rfe8 {[%emt 0:01:51]} 12. Bb2 {[%emt 0:00:22]} Bf8 {[%emt 0:00:28]} 13. Qc2 {[%emt 0:05:32]} a5 {[%emt 0:02:10]} 14. a3 {[%emt 0:00:36]} g6 {[%emt 0:01:57]} 15. Bf1 {[%emt 0:08:04]} d5 {[%emt 0:08:26]} 16. exd5 {[%emt 0:03:55]} cxd5 {[%emt 0:08:42]} 17. Nxe5 {[%emt 0:01:21]} Nxe5 {[%emt 0:01:19]} 18. dxe5 {[%emt 0:01:29]} Ne4 {[%emt 0:00:21]} 19. Bd3 {[%emt 0:03:54]} Nxf2 {[%emt 0:08:07]} 20. Kxf2 {[%emt 0:01:21]} Bc5+ {[%emt 0:02:04]} 21. Kf3 {[%emt 0:01:29]} Rxe5 {[%emt 0:01:01]} 22. c4 {[%emt 0:01:20]} d4 {[%emt 0:08:28]} 23. Be4 {[%emt 0:45:44]} Qe7 {[%emt 0:04:25]} 24. g3 {[%emt 0:01:35]} Re8 {[%emt 0:01:52]} 25. b4 {[%emt 0:00:42]} axb4 {[%emt 0:12:44]} 26. axb4 {[%emt 0:00:01]} d3 {[%emt 0:02:00]} 27. Qxd3 {[%emt 0:01:55]} Qf6+ {[%emt 0:00:15]} 28. Kg2 {[%emt 0:00:01]} Qf2+ {[%emt 0:00:08]} 29. Kh1 {[%emt 0:00:01]} Qxb2 {[%emt 0:00:26]} 30. bxc5 {[%emt 0:00:37]} Rxe4 {[%emt 0:00:19]} 31. Rxe4 {[%emt 0:00:07]} Qxa1+ {[%emt 0:00:05]} 32. Kg2 {[%emt 0:00:03]} Qb2+ {[%emt 0:00:08]} 33. Kf3 {[%emt 0:00:38]} Qf6+ {[%emt 0:06:20]} 34. Rf4 {[%emt 0:01:11]} Qe5 {[%emt 0:00:33]} 35. h4 {[%emt 0:01:26]} Qxc5 {[%emt 0:02:36]} 36. Qd7 {[%emt 0:00:17]} Re3+ {[%emt 0:06:33]} 37. Kg2 {[%emt 0:00:16]} Re2+ {[%emt 0:00:17]} 38. Kh3 {[%emt 0:00:21]} Re7 {[%emt 0:00:07]} 39. Qd8+ {[%emt 0:01:03]} Kg7 {[%emt 0:00:02]} 40. Qd4+ {[%emt 0:00:27]} Qxd4 {[%emt 0:01:26]} 41. Rxd4 {[%emt 0:30:01]} Rc7 {[%emt 0:31:53]} 42. g4 {[%emt 0:00:00]} Kf6 {[%emt 0:00:00]} 43. Re4 {[%emt 0:00:00]} h6 {[%emt 0:00:00]} 44. Kg3 {[%emt 0:00:00]} Rc6 {[%emt 0:00:00]} 45. Kf3 {[%emt 0:00:00]} Rc5 {[%emt 0:00:00]} 46. Rd4 {[%emt 0:00:00]} Ke6 {[%emt 0:00:00]} 47. Ke3 {[%emt 0:00:00]} f6 {[%emt 0:00:00]} 48. Kd3 {[%emt 0:00:00]} h5 {[%emt 0:00:00]} 49. Ke3 {[%emt 0:00:00]} Ra5 {[%emt 0:00:00]} 50. gxh5 {[%emt 0:00:00]} Rxh5 {[%emt 0:00:00]} 51. Rg4 {[%emt 0:00:00]} Re5+ {[%emt 0:00:00]} 52. Kf3 {[%emt 0:00:00]} Kf7 {[%emt 0:00:00]} 53. Rd4 {[%emt 0:00:00]} Re7 {[%emt 0:00:00]} 54. Rd6 {[%emt 0:00:00]} Kg7 {[%emt 0:00:00]} 55. Rb6 {[%emt 0:00:00]} Rc7 {[%emt 0:00:00]} 56. Kg3 {[%emt 0:00:00]} Rf7 {[%emt 0:00:00]} 57. c5 {[%emt 0:04:00]} Rc7 {[%emt 0:00:12]} 58. Kg4 {[%emt 0:00:28]} Rxc5 {[%emt 0:02:56]} 59. Rxb7+ {[%emt 0:00:06]} Kh6 {[%emt 0:00:05]} 60. Rb8 {[%emt 0:00:26]} f5+ {[%emt 0:00:27]} 61. Kg3 {[%emt 0:02:33]} Rc3+ {[%emt 0:00:09]} 62. Kg2 {[%emt 0:00:32]} Kh5 {[%emt 0:00:12]} 63. Rh8+ {[%emt 0:01:34]} Kg4 {[%emt 0:00:02]} 64. Rh6 {[%emt 0:00:26]} Rc6 {[%emt 0:00:19]} 65. Kf2 {[%emt 0:01:01]} f4 {[%emt 0:00:10]} 66. Kf1 {[%emt 0:00:57]} Kg3 {[%emt 0:00:46]} 67. h5 {[%emt 0:00:16]} Rc1+ {[%emt 0:00:06]} 68. Ke2 {[%emt 0:00:01]} g5 {[%emt 0:00:17]} 69. Rf6 {[%emt 0:00:11]} g4 {[%emt 0:00:46]} 70. h6 {[%emt 0:00:04]} f3+ {[%emt 0:00:06]} 71. Kd2 {[%emt 0:00:05]} Rc7 0-1

[Event "Kazakhstan Cup Open 2020"]
[Site "Almaty"]
[Date "2020.12.12"]
[Round "2.3"]
[White "Zhalmakhanov, Ramazan"]
[Black "Agmanov, Zhandos"]
[Result "1-0"]
[ECO "B13"]
[WhiteElo "2393"]
[BlackElo "2407"]
[Annotator "RC"]
[PlyCount "141"]
[EventDate "2020.12.01"]
[EventType "tourn"]
[EventCountry "KAZ"]
[SourceTitle "playchess.com"]
[Source "ChessBase"]
[SourceQuality "1"]
[TimeControl "40/5400+30:1800+30"]

1. e4 {[%emt 0:00:00]} c6 {[%emt 0:00:32]} 2. d4 {[%emt 0:00:00]} d5 {[%emt 0:00:42]} 3. exd5 {[%emt 0:00:00]} cxd5 {[%emt 0:00:10]} 4. Bd3 {[%emt 0:00:04]} Nf6 {[%emt 0:00:45]} 5. c3 {[%emt 0:00:54]} Bg4 {[%emt 0:00:27]} 6. Qb3 {[%emt 0:01:21]} Qc7 {[%emt 0:01:23]} 7. h3 {[%emt 0:06:42]} Bd7 {[%emt 0:08:25]} 8. Ne2 {[%emt 0:02:38]} Nc6 {[%emt 0:02:33]} 9. Bf4 {[%emt 0:08:00]} e5 {[%emt 0:04:14]} 10. dxe5 {[%emt 0:03:22]} Nxe5 {[%emt 0:00:38]} 11. Bb5 {[%emt 0:06:55]} Bd6 {[%emt 0:10:04]} 12. Bxd7+ {[%emt 0:03:36]} Qxd7 {[%emt 0:07:55]} 13. O-O {[%emt 0:08:08]} O-O {[%emt 0:01:28]} 14. Bxe5 {[%emt 0:07:17]} Bxe5 {[%emt 0:00:13]} 15. Nd2 {[%emt 0:00:04]} Rfe8 {[%emt 0:08:11]} 16. Nf3 {[%emt 0:00:26]} Bc7 {[%emt 0:14:41]} 17. Ned4 {[%emt 0:05:25]} Nh5 {[%emt 0:01:44]} 18. Qb5 {[%emt 0:11:20]} Qxb5 {[%emt 0:02:29]} 19. Nxb5 {[%emt 0:00:06]} Bb6 {[%emt 0:00:08]} 20. Nbd4 {[%emt 0:00:30]} Nf4 {[%emt 0:00:58]} 21. Rfd1 {[%emt 0:00:06]} Re4 {[%emt 0:04:42]} 22. Rd2 {[%emt 0:02:50]} Rae8 {[%emt 0:03:33]} 23. Kf1 {[%emt 0:01:21]} g6 {[%emt 0:03:35]} 24. Rad1 {[%emt 0:00:23]} h6 {[%emt 0:02:55]} 25. h4 {[%emt 0:01:22]} Bxd4 {[%emt 0:07:03]} 26. Nxd4 {[%emt 0:14:26]} Ne6 {[%emt 0:04:35]} 27. g3 {[%emt 0:04:20]} Nc7 {[%emt 0:00:27]} 28. Nc2 {[%emt 0:00:13]} Ra4 {[%emt 0:02:34]} 29. a3 {[%emt 0:01:11]} Ra6 {[%emt 0:00:07]} 30. Rd4 {[%emt 0:05:11]} Rb6 {[%emt 0:00:46]} 31. Rb4 {[%emt 0:00:44]} Rxb4 {[%emt 0:01:03]} 32. axb4 {[%emt 0:01:05]} Kf8 {[%emt 0:02:13]} 33. Ne3 {[%emt 0:00:24]} Rd8 {[%emt 0:00:29]} 34. Ke2 {[%emt 0:00:17]} Ke7 {[%emt 0:00:17]} 35. h5 {[%emt 0:00:35]} gxh5 {[%emt 0:02:10]} 36. Rh1 {[%emt 0:01:03]} Kf6 {[%emt 0:00:49]} 37. Rxh5 {[%emt 0:00:28]} Kg6 {[%emt 0:00:11]} 38. Rh4 {[%emt 0:01:11]} Ne6 {[%emt 0:01:02]} 39. Kd3 {[%emt 0:01:20]} f5 {[%emt 0:01:36]} 40. Ng2 {[%emt 0:01:43]} Kg5 {[%emt 0:01:19]} 41. Ne1 {[%emt 0:32:40]} h5 {[%emt 0:07:49]} 42. Nf3+ {[%emt 0:00:00]} Kg6 {[%emt 0:00:17]} 43. Nd4 {[%emt 0:00:00]} Re8 {[%emt 0:07:11]} 44. Ne2 {[%emt 0:00:00]} Kg5 {[%emt 0:01:22]} 45. Rh1 {[%emt 0:00:00]} a6 {[%emt 0:05:32]} 46. Rh4 {[%emt 0:00:00]} Re7 {[%emt 0:02:03]} 47. Ng1 {[%emt 0:00:00]} Kg6 {[%emt 0:00:39]} 48. Nf3 {[%emt 0:00:00]} Ng5 {[%emt 0:02:24]} 49. Nd4 {[%emt 0:00:32]} Re1 {[%emt 0:02:00]} 50. f3 {[%emt 0:02:09]} Rb1 {[%emt 0:03:16]} 51. b3 {[%emt 0:01:06]} Re1 {[%emt 0:00:37]} 52. Rf4 {[%emt 0:01:21]} Re5 {[%emt 0:01:27]} 53. Kd2 {[%emt 0:00:39]} Nh3 {[%emt 0:01:42]} 54. Rh4 {[%emt 0:00:06]} Ng5 {[%emt 0:00:06]} 55. Rh1 {[%emt 0:00:35]} Re7 {[%emt 0:01:14]} 56. Rh2 {[%emt 0:00:53]} Rh7 {[%emt 0:00:32]} 57. Ke3 {[%emt 0:00:44]} Re7+ {[%emt 0:00:36]} 58. Kd2 {[%emt 0:00:41]} Rh7 {[%emt 0:00:08]} 59. Ke3 {[%emt 0:00:16]} Re7+ {[%emt 0:00:04]} 60. Kf4 {[%emt 0:00:21]} Re1 {[%emt 0:00:16]} 61. Re2 {[%emt 0:00:15]} Nh3+ {[%emt 0:00:44]} 62. Ke5 {[%emt 0:00:28]} Rb1 {[%emt 0:01:24]} 63. Nxf5 {[%emt 0:01:04]} Rxb3 {[%emt 0:00:17]} 64. Ne7+ {[%emt 0:00:09]} Kg5 {[%emt 0:00:31]} 65. Nxd5 {[%emt 0:00:40]} Rb1 {[%emt 0:00:10]} 66. Rh2 {[%emt 0:00:43]} Re1+ {[%emt 0:00:10]} 67. Kd6 {[%emt 0:00:19]} Ng1 {[%emt 0:00:04]} 68. f4+ {[%emt 0:00:16]} Kg6 {[%emt 0:00:05]} 69. f5+ {[%emt 0:00:38]} Kxf5 {[%emt 0:00:15]} 70. Rxh5+ {[%emt 0:00:02]} Kg6 {[%emt 0:00:08]} 71. Rh1 {[%emt 0:00:46]} 1-0

[Event "Kazakhstan Cup Open 2020"]
[Site "Almaty"]
[Date "2020.12.13"]
[Round "3.2"]
[White "Utegaliyev, Azamat"]
[Black "Kostenko, Petr"]
[Result "1/2-1/2"]
[ECO "D02"]
[WhiteElo "2496"]
[BlackElo "2429"]
[Annotator "ChessBase"]
[PlyCount "156"]
[EventDate "2020.12.01"]
[EventType "tourn"]
[EventCountry "KAZ"]
[SourceTitle "playchess.com"]
[Source "ChessBase"]
[SourceQuality "1"]
[TimeControl "40/5400+30:1800+30"]

1. Nf3 {[%emt 0:02:43]} d5 {[%emt 0:00:00]} 2. d4 {[%emt 0:00:29]} Nf6 {[%emt 0:00:09]} 3. Bf4 {[%emt 0:00:13]} c5 {[%emt 0:00:44]} 4. e3 {[%emt 0:00:08]} Nc6 {[%emt 0:00:11]} 5. Nbd2 {[%emt 0:00:44]} Nh5 {[%emt 0:00:26]} 6. Be5 {[%emt 0:06:30]} f6 {[%emt 0:00:08]} 7. Bg3 {[%emt 0:00:27]} cxd4 {[%emt 0:01:05]} 8. Nxd4 {[%emt 0:02:54]} g6 {[%emt 0:16:54]} 9. c4 {[%emt 0:06:11]} Nxd4 {[%emt 0:08:10]} 10. exd4 {[%emt 0:00:09]} Be6 {[%emt 0:17:16]} 11. Be2 {[%emt 0:44:32]} dxc4 {[%emt 0:13:42]} 12. Bxc4 {[%emt 0:08:54]} Bxc4 {[%emt 0:05:27]} 13. Nxc4 {[%emt 0:00:12]} Rc8 {[%emt 0:01:33]} 14. Qe2 {[%emt 0:04:32]} Kf7 {[%emt 0:08:32]} 15. O-O {[%emt 0:00:56]} Bh6 {[%emt 0:00:27]} 16. Rfe1 {[%emt 0:04:59]} Re8 {[%emt 0:02:32]} 17. b3 {[%emt 0:06:09]} Qd5 {[%emt 0:08:17]} 18. Rad1 {[%emt 0:00:05]} b5 {[%emt 0:02:20]} 19. Ne3 {[%emt 0:00:26]} Bxe3 {[%emt 0:00:09]} 20. fxe3 {[%emt 0:00:17]} Nxg3 {[%emt 0:01:53]} 21. hxg3 {[%emt 0:00:04]} Qg5 {[%emt 0:01:40]} 22. g4 {[%emt 0:00:51]} Rc3 {[%emt 0:01:09]} 23. e4 {[%emt 0:01:16]} Rg3 {[%emt 0:01:23]} 24. e5 {[%emt 0:00:27]} fxe5 {[%emt 0:03:50]} 25. Qxb5 {[%emt 0:03:29]} Rd8 {[%emt 0:00:57]} 26. Qf1+ {[%emt 0:00:55]} Kg8 {[%emt 0:01:51]} 27. Rxe5 {[%emt 0:00:19]} Qxg4 {[%emt 0:00:05]} 28. Rd2 {[%emt 0:03:33]} Rf8 {[%emt 0:01:26]} 29. Qe2 {[%emt 0:00:01]} Rf7 {[%emt 0:01:24]} 30. Qxg4 {[%emt 0:01:09]} Rxg4 {[%emt 0:00:02]} 31. Re6 {[%emt 0:00:25]} a5 {[%emt 0:01:07]} 32. Re5 {[%emt 0:00:14]} Rff4 {[%emt 0:00:18]} 33. Rxa5 {[%emt 0:00:09]} Rxd4 {[%emt 0:00:05]} 34. Rd5 {[%emt 0:01:42]} Rxd5 {[%emt 0:00:16]} 35. Rxd5 {[%emt 0:00:01]} Kf7 {[%emt 0:00:07]} 36. Kf2 {[%emt 0:00:22]} Ke6 {[%emt 0:01:33]} 37. Rd2 {[%emt 0:00:55]} h5 {[%emt 0:00:20]} 38. Kf3 {[%emt 0:01:03]} g5 {[%emt 0:00:39]} 39. Re2+ {[%emt 0:00:03]} Kf5 {[%emt 0:00:49]} 40. Rxe7 {[%emt 0:00:14]} Rd4 {[%emt 0:00:22]} 41. Re2 {[%emt 0:08:55]} h4 {[%emt 0:03:30]} 42. Ke3 {[%emt 0:00:57]} Ke5 {[%emt 0:01:05]} 43. Rc2 {[%emt 0:07:36]} Rg4 {[%emt 0:00:49]} 44. Kd3 {[%emt 0:01:01]} Kd5 {[%emt 0:00:21]} 45. Kc3 {[%emt 0:01:35]} Kc5 {[%emt 0:00:25]} 46. Kb2+ {[%emt 0:02:37]} Kb5 {[%emt 0:01:58]} 47. Re2 {[%emt 0:00:23]} Rg3 {[%emt 0:00:42]} 48. Kc2 {[%emt 0:00:05]} Kb4 {[%emt 0:00:36]} 49. Kb2 {[%emt 0:02:12]} Kb5 {[%emt 0:00:19]} 50. Rd2 {[%emt 0:02:35]} Ka5 {[%emt 0:00:35]} 51. Rd5+ {[%emt 0:00:10]} Kb6 {[%emt 0:00:03]} 52. Rd2 {[%emt 0:00:03]} Ka5 {[%emt 0:00:12]} 53. Kc2 {[%emt 0:01:47]} Kb4 {[%emt 0:00:35]} 54. Rd4+ {[%emt 0:00:04]} Kb5 {[%emt 0:00:42]} 55. Rd2 {[%emt 0:00:22]} Kb4 {[%emt 0:00:12]} 56. Re2 {[%emt 0:00:14]} Ka3 {[%emt 0:03:53]} 57. Kb1 {[%emt 0:00:06]} Kb4 {[%emt 0:00:04]} 58. Rc2 {[%emt 0:00:46]} Kb5 {[%emt 0:00:16]} 59. Kc1 {[%emt 0:00:06]} Kb4 {[%emt 0:00:28]} 60. Rc4+ {[%emt 0:00:14]} Kb5 {[%emt 0:00:19]} 61. Rc2 {[%emt 0:00:08]} Kb4 {[%emt 0:00:04]} 62. Kd1 {[%emt 0:00:06]} Ka3 {[%emt 0:02:13]} 63. Ke1 {[%emt 0:00:08]} h3 {[%emt 0:00:47]} 64. gxh3 {[%emt 0:00:11]} Rxh3 {[%emt 0:00:05]} 65. Rg2 {[%emt 0:00:15]} Rh1+ {[%emt 0:00:58]} 66. Kd2 {[%emt 0:00:04]} Kxa2 {[%emt 0:00:05]} 67. b4 {[%emt 0:00:42]} Kb3 {[%emt 0:00:21]} 68. b5 {[%emt 0:00:04]} Kc4 {[%emt 0:00:06]} 69. Rxg5 {[%emt 0:00:06]} Rb1 {[%emt 0:00:12]} 70. Rg8 {[%emt 0:00:18]} Rb2+ {[%emt 0:00:04]} 71. Kc1 {[%emt 0:00:03]} Rxb5 {[%emt 0:00:04]} 72. Rg4+ {[%emt 0:00:04]} Kc3 {[%emt 0:00:05]} 73. Rg3+ {[%emt 0:00:06]} Kb4 {[%emt 0:00:04]} 74. Kc2 {[%emt 0:00:04]} Rc5+ {[%emt 0:00:05]} 75. Kb2 {[%emt 0:00:03]} Rc4 {[%emt 0:00:04]} 76. Rb3+ {[%emt 0:00:03]} Kc5 {[%emt 0:00:06]} 77. Rc3 {[%emt 0:00:04]} Kb5 {[%emt 0:00:03]} 78. Rxc4 {[%emt 0:00:05]} Kxc4 {[%emt 0:00:02]} 1/2-1/2

[Event "Kazakhstan Cup Open 2020"]
[Site "Almaty"]
[Date "2020.12.13"]
[Round "3.4"]
[White "Agmanov, Zhandos"]
[Black "Aitbayev, Aslan"]
[Result "1-0"]
[ECO "C07"]
[WhiteElo "2407"]
[BlackElo "2457"]
[Annotator "ChessBase"]
[PlyCount "83"]
[EventDate "2020.12.01"]
[EventType "tourn"]
[EventCountry "KAZ"]
[SourceTitle "playchess.com"]
[Source "ChessBase"]
[SourceQuality "1"]
[TimeControl "40/5400+30:1800+30"]

1. e4 e6 {[%emt 0:03:30]} 2. d4 {[%emt 0:00:17]} d5 {[%emt 0:00:05]} 3. Nd2 {[%emt 0:00:37]} c5 {[%emt 0:00:26]} 4. exd5 {[%emt 0:01:29]} Qxd5 {[%emt 0:00:05]} 5. Ngf3 {[%emt 0:00:11]} cxd4 {[%emt 0:00:06]} 6. Bc4 {[%emt 0:00:09]} Qd6 {[%emt 0:00:04]} 7. O-O {[%emt 0:01:40]} Nf6 {[%emt 0:00:12]} 8. Nb3 {[%emt 0:00:16]} Nc6 {[%emt 0:00:05]} 9. Nbxd4 {[%emt 0:02:06]} Nxd4 {[%emt 0:00:06]} 10. Nxd4 {[%emt 0:00:07]} Be7 {[%emt 0:00:11]} 11. c3 {[%emt 0:03:53]} O-O {[%emt 0:02:01]} 12. Qf3 {[%emt 0:00:30]} Qc7 {[%emt 0:01:43]} 13. Bb3 {[%emt 0:01:36]} a5 {[%emt 0:00:24]} 14. a4 {[%emt 0:01:49]} Bd7 {[%emt 0:00:37]} 15. h3 {[%emt 0:07:42]} Qb6 {[%emt 0:08:34]} 16. Bc2 {[%emt 0:07:00]} Bc5 {[%emt 0:10:18]} 17. Rd1 {[%emt 0:09:40]} Bc6 {[%emt 0:08:40]} 18. Nxc6 {[%emt 0:09:33]} bxc6 {[%emt 0:01:23]} 19. Rb1 {[%emt 0:00:36]} Nd5 {[%emt 0:01:10]} 20. Bd2 {[%emt 0:04:37]} Rab8 {[%emt 0:00:44]} 21. Re1 {[%emt 0:01:40]} Rfd8 {[%emt 0:05:52]} 22. g3 {[%emt 0:08:42]} Qa7 {[%emt 0:07:58]} 23. Re2 {[%emt 0:04:39]} Rd7 {[%emt 0:05:43]} 24. Kg2 {[%emt 0:01:56]} Rdb7 {[%emt 0:07:24]} 25. Bc1 {[%emt 0:03:06]} Be7 {[%emt 0:02:24]} 26. h4 {[%emt 0:08:34]} Bf6 {[%emt 0:04:51]} 27. Ra1 {[%emt 0:00:13]} Qc5 {[%emt 0:02:58]} 28. h5 {[%emt 0:01:05]} g6 {[%emt 0:10:05]} 29. Bd3 {[%emt 0:03:33]} Bg7 {[%emt 0:02:27]} 30. h6 {[%emt 0:02:15]} Bh8 {[%emt 0:01:25]} 31. Re4 {[%emt 0:00:13]} Rxb2 {[%emt 0:03:50]} 32. Rc4 {[%emt 0:01:24]} Qd6 {[%emt 0:06:10]} 33. Bxb2 {[%emt 0:01:19]} Rxb2 {[%emt 0:00:03]} 34. Be4 {[%emt 0:05:58]} Be5 {[%emt 0:01:05]} 35. Bxd5 {[%emt 0:02:50]} exd5 {[%emt 0:00:04]} 36. Rd1 {[%emt 0:01:20]} Qe6 {[%emt 0:03:28]} 37. Rc5 {[%emt 0:02:42]} g5 {[%emt 0:01:33]} 38. Rxa5 {[%emt 0:02:13]} Qxh6 {[%emt 0:00:10]} 39. c4 {[%emt 0:00:22]} Qg6 {[%emt 0:00:59]} 40. cxd5 {[%emt 0:00:34]} cxd5 {[%emt 0:00:24]} 41. Rdxd5 {[%emt 0:03:38]} g4 {[%emt 0:08:43]} 42. Qe3 {[%emt 0:01:23]} 1-0

[Event "Kazakhstan Cup Open 2020"]
[Site "Almaty"]
[Date "2020.12.16"]
[Round "7.1"]
[White "Ismagambetov, Anuar"]
[Black "Ibrayev, Nurlan"]
[Result "1-0"]
[ECO "B40"]
[WhiteElo "2528"]
[BlackElo "2395"]
[Annotator "ChessBase"]
[PlyCount "73"]
[EventDate "2020.12.01"]
[EventType "tourn"]
[EventCountry "KAZ"]
[SourceTitle "playchess.com"]
[Source "ChessBase"]
[SourceQuality "1"]
[TimeControl "40/5400+30:1800+30"]

1. e4 {[%emt 0:00:26]} c5 {[%emt 0:00:38]} 2. Nf3 {[%emt 0:00:16]} e6 {[%emt 0:00:51]} 3. d4 {[%emt 0:00:07]} cxd4 {[%emt 0:00:04]} 4. Nxd4 {[%emt 0:00:04]} Qb6 {[%emt 0:00:04]} 5. Nb3 {[%emt 0:00:45]} a6 {[%emt 0:01:52]} 6. g3 {[%emt 0:02:02]} Qc7 {[%emt 0:04:55]} 7. Bg2 {[%emt 0:00:15]} Nc6 {[%emt 0:03:16]} 8. O-O {[%emt 0:01:23]} Nf6 {[%emt 0:01:07]} 9. Nc3 {[%emt 0:05:16]} d6 {[%emt 0:01:12]} 10. Be3 {[%emt 0:06:39]} Be7 {[%emt 0:04:28]} 11. Na4 {[%emt 0:06:19]} Nd7 {[%emt 0:01:10]} 12. c4 {[%emt 0:00:05]} b6 {[%emt 0:08:41]} 13. e5 {[%emt 0:05:39]} dxe5 {[%emt 0:07:16]} 14. c5 {[%emt 0:00:06]} b5 {[%emt 0:01:16]} 15. Nb6 {[%emt 0:00:07]} Rb8 {[%emt 0:00:06]} 16. Nxc8 {[%emt 0:12:48]} Rxc8 {[%emt 0:02:25]} 17. a4 {[%emt 0:00:06]} O-O {[%emt 0:01:26]} 18. axb5 {[%emt 0:06:08]} axb5 {[%emt 0:00:12]} 19. Bxc6 {[%emt 0:06:26]} Qxc6 {[%emt 0:00:20]} 20. Ra7 {[%emt 0:00:04]} Nxc5 {[%emt 0:17:41]} 21. Rxe7 {[%emt 0:02:06]} Na4 {[%emt 0:00:05]} 22. Nd2 {[%emt 0:05:22]} Nxb2 {[%emt 0:01:13]} 23. Qg4 {[%emt 0:00:07]} Kh8 {[%emt 0:04:19]} 24. Nf3 {[%emt 0:03:05]} Qd6 {[%emt 0:01:13]} 25. Ra7 {[%emt 0:00:13]} Rc4 {[%emt 0:02:57]} 26. Qh5 {[%emt 0:02:24]} f6 {[%emt 0:00:41]} 27. Nd2 {[%emt 0:06:39]} Rc7 {[%emt 0:02:12]} 28. Ne4 {[%emt 0:03:30]} Qc6 {[%emt 0:00:30]} 29. Rxc7 {[%emt 0:00:47]} Qxc7 {[%emt 0:00:02]} 30. Ra1 {[%emt 0:02:32]} Qc6 {[%emt 0:13:22]} 31. Bc5 {[%emt 0:04:42]} Rc8 {[%emt 0:01:29]} 32. Nxf6 {[%emt 0:09:38]} gxf6 {[%emt 0:01:21]} 33. Be7 {[%emt 0:00:04]} Kg7 {[%emt 0:15:05]} 34. Qh4 {[%emt 0:02:59]} Qf3 {[%emt 0:00:18]} 35. Bxf6+ {[%emt 0:00:13]} Kf8 {[%emt 0:00:22]} 36. Qh6+ {[%emt 0:00:52]} Ke8 {[%emt 0:00:34]} 37. Qg7 {[%emt 0:00:11]} 1-0